[Event "TUR-chT Superleague 2018"]
[Site "Ankara"]
[Date "2018.08.02"]
[Round "9"]
[White "Caglar, Ahmet Ata"]
[Black "Erdogan, Anil Berk"]
[Result "1/2-1/2"]
[ECO "A70"]
[WhiteElo "2076"]
[BlackElo "2055"]
[Annotator "NA"]
[PlyCount "168"]
[EventDate "2018.07.25"]
[EventType "team-tourn"]
[EventCountry "TUR"]
[SourceTitle "playchess.com"]
[Source "ChessBase"]
[SourceQuality "1"]
[TimeControl "40/5400+30:1800+30"]

1. d4 {[%emt 0:00:30]} Nf6 {[%emt 0:00:30]} 2. c4 {[%emt 0:00:30]} c5 {[%emt 0:00:30]} 3. d5 {[%emt 0:00:30]} e6 {[%emt 0:00:30]} 4. Nc3 {[%emt 0:00:30]} exd5 {[%emt 0:00:30]} 5. cxd5 {[%emt 0:00:30]} d6 {[%emt 0:00:30]} 6. e4 {[%emt 0:00:30]} g6 {[%emt 0:00:30]} 7. h3 {[%emt 0:00:00]} Bg7 {[%emt 0:00:00]} 8. Nf3 {[%emt 0:00:00]} O-O {[%emt 0:00:00]} 9. Bd3 {[%emt 0:00:00]} b5 {[%emt 0:00:00]} 10. Nxb5 {[%emt 0:00:00]} Nxe4 {[%emt 0:00:00]} 11. Bxe4 {[%emt 0:00:00]} Re8 {[%emt 0:00:00]} 12. Ng5 {[%emt 0:00:00]} h6 {[%emt 0:34:00]} 13. Ne6 {[%emt 0:09:30]} Qa5+ {[%emt 0:15:30]} 14. Nc3 {[%emt 0:00:30]} Bxc3+ {[%emt 0:00:30]} 15. bxc3 {[%emt 0:00:30]} Qxc3+ {[%emt 0:00:30]} 16. Bd2 {[%emt 0:00:00]} Qc4 {[%emt 0:00:00]} 17. Qc2 {[%emt 0:05:00]} Qxc2 {[%emt 0:07:00]} 18. Bxc2 {[%emt 0:00:30]} Kh7 {[%emt 0:01:30]} 19. O-O {[%emt 0:02:30]} fxe6 {[%emt 0:00:30]} 20. dxe6 {[%emt 0:00:30]} Bxe6 {[%emt 0:00:30]} 21. Rab1 {[%emt 0:04:30]} Nd7 {[%emt 0:09:30]} 22. Bf4 {[%emt 0:04:30]} d5 {[%emt 0:03:30]} 23. Rb7 {[%emt 0:00:30]} Kg7 {[%emt 0:06:28]} 24. Ba4 {[%emt 0:13:30]} Re7 {[%emt 0:01:32]} 25. Re1 {[%emt 0:00:30]} Kf6 {[%emt 0:02:06]} 26. Bd6 {[%emt 0:07:30]} Rf7 {[%emt 0:00:41]} 27. Rb3 {[%emt 0:00:30]} Nb6 {[%emt 0:03:41]} 28. Bc6 {[%emt 0:03:30]} Rc8 {[%emt 0:02:54]} 29. Rf3+ {[%emt 0:01:30]} Bf5 {[%emt 0:00:07]} 30. Be8 {[%emt 0:01:30]} Rb7 {[%emt 0:03:21]} 31. g4 {[%emt 0:00:30]} Nc4 {[%emt 0:00:02]} 32. gxf5 {[%emt 0:17:30]} Nxd6 {[%emt 0:00:06]} 33. Re6+ {[%emt 0:00:30]} Kg7 {[%emt 0:00:30]} 34. Rxg6+ {[%emt 0:08:30]} Kh7 {[%emt 0:01:36]} 35. Rxd6 {[%emt 0:00:30]} Rxe8 {[%emt 0:00:30]} 36. Rxd5 {[%emt 0:00:30]} Rc8 {[%emt 0:02:08]} 37. Rc3 {[%emt 0:01:27]} Rg8+ {[%emt 0:02:13]} 38. Kf1 {[%emt 0:03:06]} Rb1+ {[%emt 0:02:49]} 39. Ke2 {[%emt 0:00:06]} Rb2+ {[%emt 0:00:26]} 40. Rd2 {[%emt 0:00:00]} Re8+ {[%emt 0:00:00]} 41. Re3 {[%emt 0:04:51]} Reb8 {[%emt 0:12:20]} 42. Re7+ {[%emt 0:03:30]} Kg8 {[%emt 0:00:30]} 43. Rxa7 {[%emt 0:00:30]} c4 {[%emt 0:01:53]} 44. Rc7 {[%emt 0:00:30]} Rxd2+ {[%emt 0:00:21]} 45. Kxd2 {[%emt 0:00:30]} Rb2+ {[%emt 0:00:30]} 46. Ke3 {[%emt 0:00:30]} Rxa2 {[%emt 0:00:30]} 47. Rxc4 {[%emt 0:00:30]} Ra3+ {[%emt 0:00:25]} 48. Kf4 {[%emt 0:00:30]} Rxh3 {[%emt 0:07:05]} 49. Ke5 {[%emt 0:01:30]} Ra3 {[%emt 0:00:15]} 50. Rc8+ {[%emt 0:05:30]} Kf7 {[%emt 0:01:53]} 51. Rc7+ {[%emt 0:00:00]} Kf8 {[%emt 0:00:40]} 52. Rc6 {[%emt 0:00:00]} Kf7 {[%emt 0:06:04]} 53. Rxh6 {[%emt 0:01:30]} Ra5+ {[%emt 0:00:02]} 54. Kf4 {[%emt 0:00:30]} Ra1 {[%emt 0:00:01]} 55. Re6 {[%emt 0:02:30]} Rb1 {[%emt 0:01:04]} 56. Re4 {[%emt 0:02:30]} Kf6 {[%emt 0:00:30]} 57. Ra4 {[%emt 0:00:00]} Rc1 {[%emt 0:00:00]} 58. Ra6+ {[%emt 0:01:00]} Kf7 {[%emt 0:00:00]} 59. Rd6 {[%emt 0:01:30]} Ra1 {[%emt 0:00:45]} 60. Rg6 {[%emt 0:02:30]} Rb1 {[%emt 0:00:16]} 61. Re6 {[%emt 0:07:54]} Ra1 {[%emt 0:00:32]} 62. f3 {[%emt 0:03:35]} Rb1 {[%emt 0:01:17]} 63. Ra6 {[%emt 0:02:52]} Rc1 {[%emt 0:00:26]} 64. Kg4 {[%emt 0:01:05]} Rg1+ {[%emt 0:01:37]} 65. Kf4 {[%emt 0:00:30]} Rb1 {[%emt 0:00:00]} 66. Kg3 {[%emt 0:00:25]} Rg1+ {[%emt 0:00:25]} 67. Kf4 {[%emt 0:00:31]} Rb1 {[%emt 0:00:18]} 68. Ra4 {[%emt 0:00:28]} Kf6 {[%emt 0:00:14]} 69. Rc4 {[%emt 0:00:50]} Ra1 {[%emt 0:00:07]} 70. Rc6+ {[%emt 0:00:30]} Kf7 {[%emt 0:00:03]} 71. f6 {[%emt 0:01:08]} Ra5 {[%emt 0:02:10]} 72. Kg4 {[%emt 0:00:12]} Rb5 {[%emt 0:00:22]} 73. Ra6 {[%emt 0:00:30]} Rc5 {[%emt 0:00:00]} 74. f4 {[%emt 0:00:00]} Rb5 {[%emt 0:00:22]} 75. Kf3 {[%emt 0:01:33]} Rb3+ {[%emt 0:01:17]} 76. Ke4 {[%emt 0:00:47]} Rb4+ {[%emt 0:00:01]} 77. Kf5 {[%emt 0:00:35]} Rb5+ {[%emt 0:00:01]} 78. Kg4 {[%emt 0:00:14]} Rc5 {[%emt 0:00:24]} 79. Ra8 {[%emt 0:07:54]} Kxf6 {[%emt 0:01:32]} 80. Rf8+ {[%emt 0:01:48]} Kg7 {[%emt 0:00:15]} 81. Re8 {[%emt 0:01:20]} Kf6 {[%emt 0:00:25]} 82. Ra8 {[%emt 0:00:37]} Rb5 {[%emt 0:00:32]} 83. Ra6+ {[%emt 0:00:22]} Kf7 {[%emt 0:00:25]} 84. f5 {[%emt 0:01:38]} Rb1 {[%emt 0:00:10]} 1/2-1/2

[Event "TUR-chT Superleague 2018"]
[Site "Ankara"]
[Date "2018.08.02"]
[Round "9"]
[White "Zeydan, Salih"]
[Black "Korkmaz, Necmettin"]
[Result "1-0"]
[ECO "C10"]
[WhiteElo "2061"]
[BlackElo "2056"]
[Annotator "NA"]
[PlyCount "65"]
[EventDate "2018.07.25"]
[EventType "team-tourn"]
[EventCountry "TUR"]
[SourceTitle "playchess.com"]
[Source "ChessBase"]
[SourceQuality "1"]
[TimeControl "40/5400+30:1800+30"]

1. e4 {[%emt 0:00:30]} e6 {[%emt 0:00:30]} 2. d4 {[%emt 0:00:30]} d5 {[%emt 0:00:30]} 3. Nd2 {[%emt 0:00:30]} dxe4 {[%emt 0:01:30]} 4. Nxe4 {[%emt 0:03:30]} Nd7 {[%emt 0:00:30]} 5. Nf3 {[%emt 0:05:30]} Ngf6 {[%emt 0:00:00]} 6. Ng3 {[%emt 0:01:30]} c5 {[%emt 0:16:00]} 7. c3 {[%emt 0:03:30]} cxd4 {[%emt 0:07:30]} 8. Nxd4 {[%emt 0:00:30]} Bc5 {[%emt 0:02:30]} 9. Bc4 {[%emt 0:07:30]} O-O {[%emt 0:04:30]} 10. O-O {[%emt 0:03:30]} Nb6 {[%emt 0:04:30]} 11. Bb3 $11 {[%emt 0:09:30]} Bxd4 {[%emt 0:01:30]} 12. cxd4 {[%emt 0:00:30]} Bd7 {[%emt 0:00:30]} 13. f4 {[%emt 0:15:30]} Bb5 {[%emt 0:13:30]} 14. Rf2 {[%emt 0:06:30]} Bc4 {[%emt 0:08:30]} 15. Bc2 {[%emt 0:05:30]} Nfd5 {[%emt 0:18:21]} 16. f5 {[%emt 0:02:30]} Nb4 {[%emt 0:02:13]} 17. Bb1 {[%emt 0:02:30]} e5 {[%emt 0:00:52]} 18. f6 {[%emt 0:02:30]} g6 {[%emt 0:02:07]} 19. Qd2 {[%emt 0:01:30]} N4d5 {[%emt 0:03:09]} 20. dxe5 {[%emt 0:08:03]} Kh8 {[%emt 0:02:23]} 21. b3 {[%emt 0:13:26]} Ba6 {[%emt 0:00:18]} 22. Qh6 {[%emt 0:01:34]} Rg8 {[%emt 0:00:06]} 23. e6 {[%emt 0:00:18]} Qf8 {[%emt 0:03:00]} 24. Qh4 {[%emt 0:02:35]} Qc5 {[%emt 0:02:53]} 25. Bb2 {[%emt 0:01:14]} Rae8 {[%emt 0:00:28]} 26. Bf5 {[%emt 0:01:06]} Ref8 {[%emt 0:03:34]} 27. exf7 {[%emt 0:00:31]} Rxf7 {[%emt 0:00:33]} 28. Be6 {[%emt 0:00:27]} Rgf8 {[%emt 0:01:18]} 29. Bxf7 {[%emt 0:01:33]} Rxf7 {[%emt 0:00:30]} 30. Ne4 {[%emt 0:00:05]} Qe3 {[%emt 0:00:42]} 31. Nd6 {[%emt 0:00:33]} Qe6 {[%emt 0:00:58]} 32. Nxf7+ {[%emt 0:00:30]} Qxf7 {[%emt 0:00:00]} 33. Re1 {[%emt 0:00:00]} 1-0

[Event "TUR-chT Superleague 2018"]
[Site "Ankara"]
[Date "2018.08.02"]
[Round "9"]
[White "Gulden, Egemen"]
[Black "Yaran, Siar"]
[Result "0-1"]
[ECO "C47"]
[WhiteElo "2003"]
[BlackElo "2240"]
[Annotator "NA"]
[PlyCount "116"]
[EventDate "2018.07.25"]
[EventType "team-tourn"]
[EventCountry "TUR"]
[SourceTitle "playchess.com"]
[Source "ChessBase"]
[SourceQuality "1"]
[TimeControl "40/5400+30:1800+30"]

1. e4 {[%emt 0:00:30]} e5 {[%emt 0:00:30]} 2. Nc3 {[%emt 0:01:30]} Nc6 {[%emt 0:00:00]} 3. Nf3 {[%emt 0:00:00]} Nf6 {[%emt 0:00:00]} 4. d4 {[%emt 0:00:00]} d6 {[%emt 0:03:30]} 5. dxe5 {[%emt 0:05:30] LiveBook: 13 Games} Nxe5 {[%emt 0:00:30]} 6. Nxe5 {[%emt 0:00:30]} dxe5 {[%emt 0:00:00]} 7. Qxd8+ {[%emt 0:01:30]} Kxd8 {[%emt 0:00:00]} 8. Bg5 {[%emt 0:05:30]} c6 {[%emt 0:06:30]} 9. Bxf6+ {[%emt 0:08:30] C47: Scotch Four Knights and Four Knights with 4 g3} (9. O-O-O+ Ke8 10. f3 Be6 11. Kb1 Nd7 12. Bd2 f6 13. Be2 a5 14. Rhf1 b5 15. f4 exf4 16. Bxf4 Ne5 17. a4 b4 18. Na2 Bc5 19. Nc1 Rd8 {½-½ (19) Horwitz,D (2333)-Motta,P (2392) ICCF email 2014}) 9... gxf6 {[%emt 0:00:30]} 10. O-O-O+ {[%emt 0:00:30]} Ke7 $146 {[%emt 0:03:30]} ({Predecessor:} 10... Kc7 11. Bc4 Bh6+ 12. Kb1 Rf8 13. f3 a6 14. a4 b5 15. axb5 axb5 16. Bb3 Bb7 {1-0 (51) Olijnyk,O (2102)-Zavadka,A Evpatoria 2003}) 11. Bd3 {[%emt 0:00:30]} Rg8 {[%emt 0:00:30]} 12. Rhg1 {[%emt 0:10:30]} Be6 {[%emt 0:02:30]} 13. Kb1 {[%emt 0:03:30]} Kd6 {[%emt 0:08:30]} 14. g4 {[%emt 0:14:30]} Kc7 {[%emt 0:01:30]} 15. h3 {[%emt 0:00:30]} b5 {[%emt 0:02:30]} 16. Rgf1 $15 {[%emt 0:05:30]} Bb4 {[%emt 0:20:30]} 17. Ne2 {[%emt 0:01:30]} a5 {[%emt 0:01:30]} 18. f4 {[%emt 0:04:30]} a4 {[%emt 0:01:30]} 19. f5 {[%emt 0:03:30]} Bd7 {[%emt 0:02:30]} 20. Ng3 {[%emt 0:08:30]} Be7 {[%emt 0:06:30]} 21. c4 {[%emt 0:07:58]} Rgd8 {[%emt 0:03:30]} 22. Be2 {[%emt 0:01:52]} Be8 {[%emt 0:04:30]} 23. Rxd8 {[%emt 0:04:12]} Rxd8 {[%emt 0:00:30]} 24. Rd1 {[%emt 0:00:41]} Rd4 {[%emt 0:02:30]} 25. cxb5 {[%emt 0:05:01]} cxb5 {[%emt 0:00:30]} 26. Kc2 {[%emt 0:00:48]} Kd6 {[%emt 0:00:30]} 27. Bf3 {[%emt 0:02:43]} Kc5 {[%emt 0:02:30]} 28. Ne2 {[%emt 0:01:11]} Rxd1 {[%emt 0:03:30]} 29. Kxd1 {[%emt 0:00:30]} b4 {[%emt 0:00:00]} 30. b3 {[%emt 0:00:50]} Bf8 {[%emt 0:02:00]} 31. Kc2 {[%emt 0:01:31]} Bb5 {[%emt 0:01:30]} 32. Kd2 {[%emt 0:01:29]} Bh6+ {[%emt 0:00:30]} 33. Kc2 {[%emt 0:00:19]} Bg5 {[%emt 0:00:30]} 34. bxa4 {[%emt 0:00:22]} Bxa4+ {[%emt 0:00:00]} 35. Kd3 {[%emt 0:00:29]} Bb5+ {[%emt 0:01:00]} 36. Kc2 {[%emt 0:00:30]} Kc4 {[%emt 0:00:00]} 37. Kb2 {[%emt 0:00:00]} Kd3 {[%emt 0:06:35]} 38. Ng3 {[%emt 0:00:53]} Ke3 {[%emt 0:00:37]} 39. Bd1 {[%emt 0:00:31]} Bh4 {[%emt 0:07:45]} 40. Nh5 {[%emt 0:00:00]} Bc4 {[%emt 0:00:00]} 41. Bc2 {[%emt 0:08:40]} Bf1 {[%emt 0:05:03]} 42. Kb3 {[%emt 0:01:30]} Kd2 {[%emt 0:00:30]} 43. Bb1 {[%emt 0:00:30]} Bxh3 {[%emt 0:01:30]} 44. Kxb4 {[%emt 0:00:30]} Bxg4 {[%emt 0:00:30]} 45. Ng7 {[%emt 0:00:30]} h5 {[%emt 0:01:30]} 46. a4 {[%emt 0:01:30]} Be1 {[%emt 0:02:30]} 47. Nxh5 {[%emt 0:00:30]} Bxh5 {[%emt 0:00:30]} 48. Kc5 {[%emt 0:00:30]} Ke3 {[%emt 0:00:30]} 49. Kd6 {[%emt 0:01:48]} Bb4+ {[%emt 0:00:30]} 50. Kd7 {[%emt 0:00:19]} Bd1 {[%emt 0:03:30]} 51. Ke8 {[%emt 0:01:42]} Bb3 {[%emt 0:00:30]} 52. a5 {[%emt 0:00:28]} Bxa5 {[%emt 0:00:30]} 53. Ke7 {[%emt 0:00:00]} Be1 {[%emt 0:00:00]} 54. Kxf6 {[%emt 0:00:51]} Kd4 {[%emt 0:00:00]} 55. Ke7 {[%emt 0:02:07]} Bb4+ {[%emt 0:00:00]} 56. Kf6 {[%emt 0:00:44]} Bd6 {[%emt 0:00:00]} 57. Kg5 {[%emt 0:00:56]} Kc3 {[%emt 0:00:30]} 58. Kf6 {[%emt 0:00:54]} Bc4 {[%emt 0:00:00]} 0-1

[Event "TUR-chT Superleague 2018"]
[Site "Ankara"]
[Date "2018.08.02"]
[Round "9"]
[White "Cansun, Can Alp"]
[Black "Unat, Can Haktan"]
[Result "1-0"]
[ECO "B70"]
[WhiteElo "1990"]
[BlackElo "2159"]
[Annotator "NA"]
[PlyCount "87"]
[EventDate "2018.07.25"]
[EventType "team-tourn"]
[EventCountry "TUR"]
[SourceTitle "playchess.com"]
[Source "ChessBase"]
[SourceQuality "1"]
[TimeControl "40/5400+30:1800+30"]

1. e4 {[%emt 0:00:30]} c5 {[%emt 0:00:30]} 2. Nf3 {[%emt 0:00:30]} g6 {[%emt 0:00:30]} 3. d4 {[%emt 0:00:00]} cxd4 {[%emt 0:00:00]} 4. Nxd4 {[%emt 0:01:00]} Nc6 {[%emt 0:00:00]} 5. Nc3 {[%emt 0:00:00]} Bg7 {[%emt 0:00:30]} 6. Nde2 {[%emt 0:00:00]} Nf6 {[%emt 0:04:30]} 7. h3 {[%emt 0:02:30]} d6 {[%emt 0:05:30]} 8. g3 {[%emt 0:02:30]} Bd7 {[%emt 0:03:30]} 9. Bg2 {[%emt 0:00:30]} Rc8 {[%emt 0:01:30]} 10. O-O {[%emt 0:00:30]} O-O {[%emt 0:00:00]} 11. Kh2 {[%emt 0:06:30]} Na5 {[%emt 0:07:00]} 12. f4 {[%emt 0:02:30]} b5 {[%emt 0:00:30]} 13. a3 {[%emt 0:10:30]} Ne8 {[%emt 0:06:30]} 14. Qd3 {[%emt 0:06:30]} Nc7 {[%emt 0:02:30]} 15. f5 {[%emt 0:04:30]} Nc4 $11 {[%emt 0:02:30]} 16. Rb1 {[%emt 0:06:30]} a5 {[%emt 0:01:30]} 17. Nd4 {[%emt 0:08:30]} Ne5 {[%emt 0:08:30]} 18. Qd1 {[%emt 0:01:30]} b4 {[%emt 0:00:30]} 19. axb4 {[%emt 0:00:00]} axb4 {[%emt 0:00:00]} 20. Nd5 {[%emt 0:01:00]} Nb5 {[%emt 0:03:00]} 21. Bg5 {[%emt 0:06:30]} f6 {[%emt 0:01:30]} 22. Be3 {[%emt 0:01:30]} Nxd4 {[%emt 0:01:30]} 23. Bxd4 {[%emt 0:00:00]} Rb8 {[%emt 0:09:30]} 24. Ra1 {[%emt 0:01:00]} e6 {[%emt 0:00:30]} 25. Nf4 {[%emt 0:05:30]} exf5 {[%emt 0:07:30]} 26. exf5 {[%emt 0:01:30]} Bxf5 {[%emt 0:00:30]} 27. Bd5+ {[%emt 0:00:30]} Kh8 {[%emt 0:00:00]} 28. g4 {[%emt 0:04:30]} Bd7 {[%emt 0:01:00]} 29. Ra7 {[%emt 0:02:30]} f5 {[%emt 0:00:30]} 30. g5 {[%emt 0:03:30]} Re8 {[%emt 0:01:30]} 31. Qd2 {[%emt 0:04:53]} Re7 {[%emt 0:00:30]} 32. Rfa1 {[%emt 0:02:53]} Qf8 {[%emt 0:00:30]} 33. Qf2 {[%emt 0:00:51]} Bc8 {[%emt 0:09:30]} 34. Qh4 {[%emt 0:02:49]} Bb7 {[%emt 0:00:00]} 35. Rxb7 {[%emt 0:03:14]} Rbxb7 {[%emt 0:02:00]} 36. Kh1 {[%emt 0:00:20]} Qe8 {[%emt 0:00:30]} 37. Bxe5 {[%emt 0:01:58]} Ra7 {[%emt 0:03:44]} 38. Rxa7 {[%emt 0:00:44]} Rxa7 {[%emt 0:01:32]} 39. Bxg7+ {[%emt 0:00:30]} Rxg7 {[%emt 0:00:30]} 40. Ne6 {[%emt 0:00:00]} Rf7 {[%emt 0:00:00]} 41. Qd4+ {[%emt 0:01:18]} Kg8 {[%emt 0:00:44]} 42. Nf4 {[%emt 0:00:30]} Qe1+ {[%emt 0:01:30]} 43. Kg2 {[%emt 0:00:00]} Qc1 {[%emt 0:00:30]} 44. Qc4 {[%emt 0:02:00]} 1-0

[Event "TUR-chT Superleague 2018"]
[Site "Ankara"]
[Date "2018.08.02"]
[Round "9"]
[White "Gok, Fatih"]
[Black "Secer, Ata"]
[Result "0-1"]
[ECO "B40"]
[WhiteElo "1952"]
[BlackElo "2320"]
[Annotator "NA"]
[PlyCount "72"]
[EventDate "2018.07.25"]
[EventType "team-tourn"]
[EventCountry "TUR"]
[SourceTitle "playchess.com"]
[Source "ChessBase"]
[SourceQuality "1"]
[TimeControl "40/5400+30:1800+30"]

1. e4 {[%emt 0:00:30]} c5 {[%emt 0:02:30]} 2. Nf3 {[%emt 0:00:30]} e6 {[%emt 0:00:00]} 3. b3 {[%emt 0:00:00]} b6 {[%emt 0:00:00]} 4. Bb2 {[%emt 0:00:00]} Bb7 {[%emt 0:00:00]} 5. Qe2 {[%emt 0:04:30]} Nc6 {[%emt 0:02:00] B40: Sicilian: 2...e6, Unusual lines} 6. g3 {[%emt 0:05:30]} Nf6 {[%emt 0:07:30] LiveBook: 7 Games} 7. Bg2 {[%emt 0:04:30]} d6 {[%emt 0:05:30]} 8. d4 {[%emt 0:05:30]} cxd4 {[%emt 0:00:30]} 9. Nxd4 {[%emt 0:00:30]} Nxd4 {[%emt 0:00:30]} 10. Bxd4 {[%emt 0:00:00]} Be7 {[%emt 0:02:30]} 11. O-O {[%emt 0:05:00]} O-O {[%emt 0:02:30]} 12. Nd2 $146 {[%emt 0:08:30]} ({Predecessor:} 12. c4 Nd7 13. Nc3 {½-½ (48) Vavulin,M (2448)-Grachev,B (2652) Moscow 2016}) 12... Qc7 {[%emt 0:03:30]} 13. c4 {[%emt 0:15:30]} Bc6 {[%emt 0:02:30]} 14. Rfe1 {[%emt 0:01:30]} Qb7 {[%emt 0:02:30]} 15. f4 {[%emt 0:00:30]} Rfe8 {[%emt 0:03:30]} 16. Bf2 {[%emt 0:03:30]} a6 {[%emt 0:06:30]} 17. g4 {[%emt 0:03:30]} Nd7 {[%emt 0:02:30]} 18. g5 {[%emt 0:05:30]} e5 {[%emt 0:04:30]} 19. fxe5 $17 {[%emt 0:05:30]} dxe5 {[%emt 0:03:30]} 20. Qh5 {[%emt 0:02:30]} Bb4 {[%emt 0:04:30]} 21. Rad1 {[%emt 0:06:30]} Rad8 {[%emt 0:03:30]} 22. Re3 {[%emt 0:07:12]} Nf8 {[%emt 0:04:30]} 23. Nf1 {[%emt 0:00:26]} Rxd1 {[%emt 0:01:30]} 24. Qxd1 {[%emt 0:00:02]} Ne6 {[%emt 0:00:30]} 25. Rg3 {[%emt 0:06:03]} Nf4 {[%emt 0:05:30]} 26. Bf3 {[%emt 0:06:01]} Bxe4 {[%emt 0:01:30]} 27. Ne3 {[%emt 0:00:17]} Bxf3 {[%emt 0:05:30]} 28. Qxf3 {[%emt 0:00:13]} Qxf3 {[%emt 0:02:30]} 29. Rxf3 {[%emt 0:00:01]} Rd8 {[%emt 0:00:30]} 30. Nd5 {[%emt 0:01:14]} Nxd5 {[%emt 0:01:30]} 31. cxd5 {[%emt 0:00:03]} Rxd5 {[%emt 0:00:30]} 32. Bxb6 {[%emt 0:00:14]} e4 {[%emt 0:01:30]} 33. Rg3 {[%emt 0:01:08]} Rd1+ {[%emt 0:01:21]} 34. Kf2 {[%emt 0:00:07]} Ra1 {[%emt 0:00:30]} 35. Ke3 {[%emt 0:00:31]} Rxa2 {[%emt 0:01:08]} 36. Kxe4 {[%emt 0:03:33]} Rxh2 {[%emt 0:01:20]} 0-1

[Event "TUR-chT Superleague 2018"]
[Site "Ankara"]
[Date "2018.08.02"]
[Round "9"]
[White "Can, Isil"]
[Black "Ozbay, Ece"]
[Result "1/2-1/2"]
[ECO "B48"]
[WhiteElo "1862"]
[BlackElo "2140"]
[Annotator "NA"]
[PlyCount "111"]
[EventDate "2018.07.25"]
[EventType "team-tourn"]
[EventCountry "TUR"]
[SourceTitle "playchess.com"]
[Source "ChessBase"]
[SourceQuality "1"]
[TimeControl "40/5400+30:1800+30"]

1. e4 {[%emt 0:00:30]} c5 {[%emt 0:00:30]} 2. Nf3 {[%emt 0:00:30]} e6 {[%emt 0:00:30]} 3. d4 {[%emt 0:00:30]} cxd4 {[%emt 0:00:30]} 4. Nxd4 {[%emt 0:00:30]} Nc6 {[%emt 0:00:30]} 5. Nc3 {[%emt 0:00:30]} Qc7 {[%emt 0:00:30]} 6. Be3 {[%emt 0:00:00]} a6 {[%emt 0:00:00]} 7. Qf3 {[%emt 0:00:00]} Bd6 {[%emt 0:00:00]} 8. O-O-O {[%emt 0:04:30]} Be5 $1 {[%emt 0:00:00] LiveBook: 119 Games} 9. Nxc6 {[%emt 0:12:30]} bxc6 {[%emt 0:03:00]} 10. Bd4 {[%emt 0:07:30]} Nf6 {[%emt 0:05:30]} 11. Bxe5 {[%emt 0:04:30]} Qxe5 {[%emt 0:00:30]} 12. Bc4 {[%emt 0:01:30]} O-O {[%emt 0:03:30]} 13. h4 {[%emt 0:06:30]} d5 {[%emt 0:01:30]} 14. Bd3 {[%emt 0:00:00]} Bb7 $11 {[%emt 0:04:30]} 15. Rhe1 {[%emt 0:05:00]} d4 {[%emt 0:10:30]} 16. Nb1 {[%emt 0:00:30]} Nd7 {[%emt 0:08:30]} 17. Nd2 {[%emt 0:06:30]} Qa5 {[%emt 0:05:30]} 18. a3 {[%emt 0:06:30]} Ne5 {[%emt 0:00:30]} 19. Qe2 {[%emt 0:01:30]} Nxd3+ {[%emt 0:00:30]} 20. Qxd3 {[%emt 0:00:00]} c5 {[%emt 0:04:30]} 21. Nc4 {[%emt 0:01:00]} Qb5 {[%emt 0:00:30]} 22. Nd6 {[%emt 0:07:30]} Qc6 {[%emt 0:05:30]} 23. Nxb7 {[%emt 0:01:30]} Qxb7 {[%emt 0:00:00]} 24. Qc4 {[%emt 0:04:30]} Rfb8 {[%emt 0:04:00]} 25. b3 {[%emt 0:00:30]} Qb5 {[%emt 0:00:30]} 26. Qxb5 {[%emt 0:01:30]} axb5 {[%emt 0:00:30]} 27. Kb2 {[%emt 0:00:00]} e5 {[%emt 0:00:30]} 28. f4 {[%emt 0:05:00]} f6 {[%emt 0:02:30]} 29. fxe5 {[%emt 0:01:30]} fxe5 {[%emt 0:00:30]} 30. Rf1 {[%emt 0:00:00]} c4 {[%emt 0:00:30]} 31. b4 {[%emt 0:01:00]} Rf8 {[%emt 0:01:30]} 32. g4 {[%emt 0:01:30]} g6 {[%emt 0:12:30]} 33. h5 {[%emt 0:05:01]} g5 {[%emt 0:03:30]} 34. h6 {[%emt 0:04:58]} Rf4 {[%emt 0:00:30]} 35. Rxf4 {[%emt 0:00:42]} gxf4 {[%emt 0:00:30]} 36. Rh1 {[%emt 0:00:10]} f3 {[%emt 0:03:45]} 37. Rf1 {[%emt 0:04:55]} Rf8 {[%emt 0:00:35]} 38. a4 {[%emt 0:00:18]} bxa4 {[%emt 0:00:16]} 39. Ka3 {[%emt 0:00:01]} Rf4 {[%emt 0:01:40]} 40. Kxa4 {[%emt 0:00:00]} d3 {[%emt 0:00:00]} 41. cxd3 {[%emt 0:01:25]} cxd3 {[%emt 0:16:44]} 42. Kb3 {[%emt 0:01:30]} Rxe4 {[%emt 0:00:30]} 43. Rxf3 {[%emt 0:00:30]} Rd4 {[%emt 0:00:30]} 44. Rf1 {[%emt 0:01:30]} d2 {[%emt 0:00:30]} 45. Kc2 {[%emt 0:00:30]} e4 {[%emt 0:00:30]} 46. Kd1 {[%emt 0:00:30]} e3 {[%emt 0:01:30]} 47. Ke2 {[%emt 0:02:30]} Rc4 {[%emt 0:13:06]} 48. b5 {[%emt 0:08:30]} Rc2 {[%emt 0:05:17]} 49. Rd1 {[%emt 0:00:30]} Rc3 {[%emt 0:01:36]} 50. b6 {[%emt 0:00:30]} Kf7 {[%emt 0:02:59]} 51. b7 {[%emt 0:00:30]} Rb3 {[%emt 0:00:02]} 52. b8=Q {[%emt 0:02:30]} Rxb8 {[%emt 0:00:03]} 53. Kxe3 {[%emt 0:00:30]} Rb4 {[%emt 0:00:07]} 54. Rxd2 {[%emt 0:00:30]} Rxg4 {[%emt 0:00:30]} 55. Rh2 {[%emt 0:00:00]} Kg6 {[%emt 0:01:12]} 56. Kf3 {[%emt 0:00:00]} 1/2-1/2

[Event "TUR-chT Superleague 2018"]
[Site "Ankara"]
[Date "2018.08.02"]
[Round "9"]
[White "Ozbek, Busra"]
[Black "Keskin, Elif"]
[Result "1/2-1/2"]
[ECO "D03"]
[WhiteElo "1848"]
[BlackElo "1775"]
[Annotator "NA"]
[PlyCount "80"]
[EventDate "2018.07.25"]
[EventType "team-tourn"]
[EventCountry "TUR"]
[SourceTitle "playchess.com"]
[Source "ChessBase"]
[SourceQuality "1"]
[TimeControl "40/5400+30:1800+30"]

1. d4 {[%emt 0:00:30]} Nf6 {[%emt 0:00:30]} 2. Nf3 {[%emt 0:00:30]} g6 {[%emt 0:00:30]} 3. Bg5 {[%emt 0:00:30]} Bg7 {[%emt 0:00:30]} 4. Nbd2 {[%emt 0:00:30]} d5 {[%emt 0:00:00]} 5. c3 {[%emt 0:00:00]} O-O {[%emt 0:01:00]} 6. e3 {[%emt 0:00:00]} c5 {[%emt 0:02:30]} 7. Be2 {[%emt 0:02:30]} Nbd7 {[%emt 0:04:30]} 8. O-O {[%emt 0:04:30]} b6 {[%emt 0:04:30]} 9. b4 {[%emt 0:05:30]} a5 {[%emt 0:09:30]} 10. a3 {[%emt 0:13:30]} Ba6 {[%emt 0:08:30]} 11. Bxa6 {[%emt 0:03:30]} Rxa6 {[%emt 0:00:30]} 12. Qe2 {[%emt 0:00:30]} Ra8 {[%emt 0:02:30]} 13. bxc5 $11 {[%emt 0:06:30]} bxc5 {[%emt 0:00:30]} 14. Rab1 {[%emt 0:07:30]} Qc7 {[%emt 0:08:30]} 15. Bf4 {[%emt 0:01:30]} Qc6 {[%emt 0:02:30]} 16. Qb5 {[%emt 0:03:30]} Qxb5 {[%emt 0:04:30]} 17. Rxb5 {[%emt 0:00:30]} Rfc8 {[%emt 0:01:30]} 18. a4 {[%emt 0:09:30]} Nh5 {[%emt 0:05:30]} 19. Rb7 {[%emt 0:09:30]} Nxf4 {[%emt 0:03:30]} 20. exf4 {[%emt 0:00:30]} Nf8 {[%emt 0:07:30]} 21. Re1 {[%emt 0:08:30]} cxd4 {[%emt 0:04:30]} 22. cxd4 {[%emt 0:00:30]} e6 {[%emt 0:08:30]} 23. g3 {[%emt 0:03:57]} Rab8 {[%emt 0:05:11]} 24. Reb1 {[%emt 0:03:12]} Rxb7 {[%emt 0:01:59]} 25. Rxb7 {[%emt 0:00:02]} Rc1+ {[%emt 0:01:09]} 26. Kg2 {[%emt 0:00:01]} Ra1 {[%emt 0:00:30]} 27. Nb3 {[%emt 0:09:21]} Rxa4 {[%emt 0:02:23]} 28. Ra7 {[%emt 0:00:08]} h5 {[%emt 0:02:44]} 29. Rxa5 {[%emt 0:05:31]} Rxa5 {[%emt 0:00:38]} 30. Nxa5 {[%emt 0:00:06]} Nd7 {[%emt 0:00:23]} 31. Nc6 {[%emt 0:00:34]} Nb6 {[%emt 0:01:05]} 32. Ng5 {[%emt 0:00:47]} Nc4 {[%emt 0:03:00]} 33. Kf3 {[%emt 0:00:24]} Kf8 {[%emt 0:00:46]} 34. Ke2 {[%emt 0:00:36]} Ke8 {[%emt 0:00:52]} 35. h4 {[%emt 0:00:59]} Kf8 {[%emt 0:01:12]} 36. Kd3 {[%emt 0:00:42]} Ke8 {[%emt 0:00:33]} 37. Kc3 {[%emt 0:00:25]} Kd7 {[%emt 0:02:11]} 38. Ne5+ {[%emt 0:00:24]} Nxe5 {[%emt 0:01:12]} 39. fxe5 {[%emt 0:00:56]} Ke8 {[%emt 0:00:29]} 40. Kb4 {[%emt 0:01:24]} Bf8+ {[%emt 0:00:00]} 1/2-1/2